Cogmind - Beta 11.1 @@@ ROGUE MODE // 2022.04.27 @ 22:06:57 Player: ILikeGoodFood Result: Destroyed by G-47 Trooper with Particle Gun Performance ------------- Evolutions (1) 500 Regions Visited (3) 600 Robots Destroyed (35) 175 Value Destroyed (1167) 1167 Prototype IDs (3) 60 Alien Tech Used (0) 0 Bonus (111) 111 TOTAL SCORE: 2613 Bonus ------- High Alert Combat Kills 111 Cogmind --------- Core Integrity 0/400 Matter 295/300 Energy 100/100 System Corruption 0% Temperature Cool (9) Movement Core (50) Location -9/Storage Parts ------- > --- POWER (1) -------- (None) > --- PROPULSION (4) --- Improved Flight Unit > --- UTILITY (2) ------ Visual Processing Unit > --- WEAPON (2) ------- Katana > --- INVENTORY (5) ---- Heavy Assault Rifle Improved Light Cannon Peak State ------------ > --- POWER ------------ Improved Ion Engine > --- PROPULSION ------- Improved Flight Unit Improved Flight Unit > --- UTILITY ---------- Visual Processing Unit Melee Analysis Suite > --- WEAPON ----------- Katana Katana > --- INVENTORY -------- Heavy Assault Rifle Improved Light Cannon [Rating: 19] Favorites ----------- Power Improved Ion Engine Engine Improved Ion Engine Propulsion Improved Flight Unit Leg Aluminum Leg Wheel Compact Wheel Flight Unit Improved Flight Unit Utility Visual Processing Unit Device Tractor Beam Processor Visual Processing Unit Protection Medium Armor Plating Weapon Beam Cannon Energy Cannon Beam Cannon Ballistic Gun Assault Rifle Ballistic Cannon Improved Light Cannon Slashing Weapon Katana Build | -11 -10 -9 -9 ------- Run | Scr Mat Mat Sto Slots Evolved 2 | . . 2 . Power . | . . . . Propulsion 2 | . . 2 . Utility . | . . . . Weapon . | . . . . Parts Attached 40 | 5 9 13 13 Power 9 | 1 3 2 3 Engine 9 | 1 3 2 3 Core . | . . . . Reactor . | . . . . Propulsion 13 | 2 2 7 2 Treads . | . . . . Leg 2 | . . . 2 Wheel 2 | 2 . . . Hover . | . . . . Flight 9 | . 2 7 . Utility 5 | . 2 2 1 Device 1 | . 1 . . Storage . | . . . . Processor 3 | . . 2 1 Hackware . | . . . . Protection 1 | . 1 . . Artifact . | . . . . Weapon 13 | 2 2 2 7 Energy Gun . | . . . . Energy Cannon 2 | . 1 1 . Ballistic Gun 7 | 2 1 1 3 Ballistic Cannon 2 | . . . 2 Launcher . | . . . . Special Weapon . | . . . . Impact Weapon . | . . . . Slashing Weapon 2 | . . . 2 Piercing Weapon . | . . . . Special Melee Weapon . | . . . . Unidentified Prototypes 1 | . . 1 . Parts Lost 11 | . . 2 9 Power 1 | . . . 1 Propulsion 7 | . . 2 5 Utility 1 | . . . 1 Weapon 2 | . . . 2 Highest Loss Streak 3 | . . 1 3 To Critical Strikes . | . . . . Average Slot Usage (%) 74 | . 80 72 73 Engine 11 | . 14 11 10 Wheel 3 | . 15 . . Flight 22 | . 11 32 22 Device 1 | . 5 . . Processor 11 | . . 6 20 Protection 1 | . 6 . . Energy Cannon 6 | . 12 11 1 Ballistic Gun 9 | . 14 11 5 Ballistic Cannon 3 | . . . 7 Slashing Weapon 2 | . . . 5 Naked Turns . | . . . . Heaviest Build 18 | 8 18 13 15 Greatest Support 32 | 32 32 18 18 Greatest Overweight (x) 4 | 2 4 1 1 Average Overweight (x) . | . . . . Largest Inventory Capacity 5 | 5 5 5 5 Average Capacity 5 | 5 5 5 5 Most Carried 5 | 3 5 5 5 Average Carried 3 | 1 3 3 3 Final Capacity 5 | 5 5 5 5 Final Carried 4 | 1 4 3 2 Class Distribution -------------------- 77% | Mutant 12% | Scavenger-Sprinter 9% | Scavenger-Mutant Dominant Class ---------------- Mutant | -10/Materials Mutant | -9/Materials Mutant | -9/Storage Resources | -11 -10 -9 -9 ----------- Run | Scr Mat Mat Sto Matter Collected 923 | 232 83 194 414 Remotely . | . . . . Salvage Created 1252 | . 77 417 758 Parts 83 | . 11 31 41 Haulers Intercepted . | . . . . Recyclers Shooed . | . . . . Parts Field Recycled . | . . . . Retrieved Matter . | . . . . Parts Self-Destructed . | . . . . Prevented . | . . . . Kills | -11 -10 -9 -9 ------- Run | Scr Mat Mat Sto Combat Hostiles Destroyed 30 | . 3 8 19 Melee 6 | . . . 6 Guns 11 | . 2 4 5 Cannons 12 | . 1 4 7 Classes Destroyed 6 | . 2 4 . Builder 1 | . 1 . . Watcher 4 | . . 3 1 Swarmer 3 | . 3 . . Grunt 15 | . . 4 11 Duelist 4 | . . 1 3 Sentry 8 | . . 3 5 Best Kill Streak 6 | . 4 6 3 Combat Bots Only 3 | . 3 3 3 Max Kills in Single Turn 2 | . 2 1 1 Gunslinging . | . . . . Exploded . | . . . . Melee 1 | . . . 1 Uniques/NPCs Destroyed . | . . . . Combat | -11 -10 -9 -9 -------- Run | Scr Mat Mat Sto Damage Taken 1660 | . 81 373 1206 Core 400 | . . 81 319 Absorbed by Shields 51 | . . . 51 Regen/Repaired (Parts) 31 | . 31 . . Core Remaining (%) 100 | 100 100 . . Volleys Fired 110 | . 6 32 72 Largest 2 | . 2 2 2 Hottest 83 | . 80 83 83 Shots Fired 193 | . 12 64 117 Gun 86 | . 6 32 48 Cannon 107 | . 6 32 69 Launcher . | . . . . Special . | . . . . Kinetic 144 | . 6 32 106 Thermal 49 | . 6 32 11 Explosive . | . . . . Electromagnetic . | . . . . Robot Hit Streak 14 | . 3 14 12 Robot Miss Streak 4 | . 1 3 4 Penetration Max . | . . . . Secondary Targets . | . . . . Shots Hit Robots 148 | . 7 42 99 Core Hits 51 | . 4 16 31 Critical Kills 1 | . . . 1 Critical Parts Destroyed 1 | . 1 . . Critical Strikes 7 | . 1 1 5 Destroy 3 | . 1 1 1 Blast 2 | . . . 2 Sever 2 | . . . 2 Melee Attacks 30 | . . . 30 Impact . | . . . . Slashing 30 | . . . 30 Piercing . | . . . . Sneak Attacks . | . . . . Combat Hostiles . | . . . . Follow-up Attacks . | . . . . Damage Inflicted 2773 | . 120 670 1983 Guns 722 | . 67 285 370 Cannons 1276 | . 53 385 838 Explosions . | . . . . Melee 775 | . . . 775 Ramming . | . . . . Kinetic 1386 | . 67 285 1034 Thermal 612 | . 53 385 174 Explosive . | . . . . Electromagnetic . | . . . . Impact . | . . . . Slashing 775 | . . . 775 Piercing . | . . . . Highest Corruption . | . . . . Average Corruption . | . . . . Corruption Purged . | . . . . Corruption Blocked . | . . . . Overload Shots . | . . . . Overflow Damage 7 | . . . 7 Projectiles 7 | . . . 7 Explosions . | . . . . Melee . | . . . . Knockbacks 10 | . . . 10 Impact . | . . . . Kinetic 9 | . . . 9 Secondary 1 | . . . 1 Self-Inflicted Damage . | . . . . Shots . | . . . . Rammed . | . . . . Targets Rammed . | . . . . Kicked . | . . . . Crushed . | . . . . Highest Temperature 316 | . 81 264 316 Average Temperature 120 | . 41 103 144 Received Heat Transfer 617 | . . 150 467 Effects 4 | . . . 4 Interference 3 | . . . 3 Short Circuit 1 | . . . 1 Siege Activations . | . . . . Robots Corrupted . | . . . . Combat Hostiles . | . . . . Parts Fried . | . . . . Impact Corruptions . | . . . . Robots Melted 1 | . . . 1 Combat Hostiles 1 | . . . 1 Parts Melted 6 | . 1 3 2 Heat Transferred 1295 | . 111 814 370 Parts Sabotaged . | . . . . Parts Stolen . | . . . . Parts Stripped . | . . . . Power Chain Reactions . | . . . . Missiles Intercepted . | . . . . Alert | -11 -10 -9 -9 ------- Run | Scr Mat Mat Sto Peak Influence 637 | . 125 376 637 Initial 158 | . . 52 158 Average 263 | . 49 239 405 Maximum Alert Level 2 | . . 1 2 Low Security (%) 44 | 100 100 43 12 Level 1 30 | . . 56 32 Level 2 25 | . . . 55 Level 3 . | . . . . Level 4 . | . . . . Level 5 . | . . . . High Security . | . . . . Max Security . | . . . . Squads Dispatched 6 | . . 1 5 Investigation 3 | . . 1 2 Extermination . | . . . . Reinforcement 2 | . . . 2 Assault 1 | . . . 1 Garrison . | . . . . Intercept . | . . . . Searches Triggered . | . . . . Construction Impeded . | . . . . Haulers Reinforced . | . . . . Active Scanning Responses . | . . . . Cargo Convoy Interrupts . | . . . . Stealth | -11 -10 -9 -9 --------- Run | Scr Mat Mat Sto Distress Signals 4 | . . 3 1 Communications Jammed . | . . . . Distress Signals . | . . . . Times Spotted 48 | . 4 14 30 Peak Tracking Total 6 | . 3 4 6 Tactical Retreats 4 | . . 2 2 Traps | -11 -10 -9 -9 ------- Run | Scr Mat Mat Sto Traps Triggered 3 | . . 1 2 Indirectly . | . . . . Trap Hack Attempts . | . . . . Triggered . | . . . . Disarmed . | . . . . Reprogrammed . | . . . . Reused . | . . . . Traps Extracted . | . . . . Installed . | . . . . Triggered . | . . . . Machines | -11 -10 -9 -9 ---------- Run | Scr Mat Mat Sto Machines Disabled 1 | . 1 . . Max in Single Turn 1 | . 1 . . Machines Sabotaged . | . . . . Garrisons Compromised . | . . . . Overloaded Fab Kills . | . . . . Hacking | -11 -10 -9 -9 --------- Run | Scr Mat Mat Sto Machines Accessed 15 | . 5 2 8 Terminals 12 | . 3 1 8 Fabricators . | . . . . Repair Stations 1 | . 1 . . Recycling Units 1 | . 1 . . Scanalyzers 1 | . . 1 . Garrison Access . | . . . . Total Hacks 46 | . 16 9 21 Successful 32 | . 13 8 11 Failed 14 | . 3 1 10 Catastrophic 2 | . . . 2 Database Lockouts . | . . . . Manual . | . . . . Terminals 34 | . 11 2 21 Fabricators . | . . . . Repair Stations 2 | . 2 . . Recycling Units 3 | . 3 . . Scanalyzers 7 | . . 7 . Garrison Access . | . . . . Terminal Hacks 20 | . 8 1 11 Record 8 | . 3 1 4 Robot Analysis 1 | . . . 1 Prototype ID Bank 1 | . 1 . . Open Door 1 | . . . 1 Locate Traps 2 | . . . 2 Maintenance Status 1 | . 1 . . Investigation Status 2 | . 1 . 1 Reinforcement Status 1 | . 1 . . Hauler Manifests 1 | . 1 . . Zone Layout 2 | . . . 2 Fabricator Hacks . | . . . . Repair Station Hacks 2 | . 2 . . Scan Component 1 | . 1 . . Repair 1 | . 1 . . Recycling Unit Hacks 3 | . 3 . . Process 1 | . 1 . . Report Inventory 1 | . 1 . . Retrieve Matter 1 | . 1 . . Scanalyzer 7 | . . 7 . Insert Component 3 | . . 3 . Analyze 4 | . . 4 . Garrison Access Hacks . | . . . . Unauthorized Hacks . | . . . . Terminals . | . . . . Fabricators . | . . . . Repair Stations . | . . . . Recycling Units . | . . . . Scanalyzers . | . . . . Garrison Access . | . . . . Data Cores Recovered . | . . . . Used . | . . . . Hacking Detections 13 | . 3 2 8 Full Trace Events 3 | . . . 3 Feedback Events . | . . . . Feedback Blocked . | . . . . Robot Schematics Acquired . | . . . . Robots Built . | . . . . Authchips . | . . . . Time . | . . . . Total Robot Build Rating . | . . . . Part Schematics Acquired 3 | . . 3 . Parts Built . | . . . . Authchips . | . . . . Time . | . . . . Total Part Build Rating . | . . . . Parts Repaired 1 | . 1 . . Time 26 | . 26 . . Parts Recycled . | . . . . Recycled Matter 61 | . 61 . . Retrieved Matter 61 | . 61 . . Retrieved Components . | . . . . Parts Scanalyzed 3 | . . 3 . Part Schematics Acquired 3 | . . 3 . Parts Damaged . | . . . . Bothacking | -11 -10 -9 -9 ------------ Run | Scr Mat Mat Sto Used RIF Installer . | . . . . Robots Hacked . | . . . . Non-combat . | . . . . Combat . | . . . . Robot Hacks Applied . | . . . . Relay Couplers Released . | . . . . Fabnet Peak Effective % . | . . . . Robots Rewired . | . . . . Allies Hacked . | . . . . Hacks Repelled . | . . . . Allies | -11 -10 -9 -9 -------- Run | Scr Mat Mat Sto Total Allies . | . . . . Largest Group . | . . . . Highest-Rated Group . | . . . . Highest-Rated Ally . | . . . . Total Orders . | . . . . Ally Attacks . | . . . . Total Damage . | . . . . Kills . | . . . . Allies Corrupted . | . . . . Allies Melted . | . . . . Intel | -11 -10 -9 -9 ------- Run | Scr Mat Mat Sto Robot Analysis Total 1 | . . . 1 Derelict Logs Recovered . | . . . . Drone Launches . | . . . . Drone Recoveries . | . . . . Exploration | -11 -10 -9 -9 ------------- Run | Scr Mat Mat Sto Turns Passed 1045 | 54 226 280 485 Spaces Moved 949 | 45 225 369 310 Core 20 | 20 . . . Treads . | . . . . Legs . | . . . . Wheels 135 | 25 110 . . Hover . | . . . . Flight 794 | . 115 369 310 Fastest Speed 31 | 50 37 31 31 Average Speed 54 | 95 70 40 54 Slowest Speed 360 | 150 360 107 110 Overloaded Moves . | . . . . Propulsion Burnouts . | . . . . Robots Hopped 5 | . 1 1 3 Cave-ins Triggered . | . . . . Exploration Rate (%) 29 | 3 42 21 52 Regions Visited 3 Branch Regions 1 Pre-discovered Areas . | . . . . Known Exits Taken . | . . . . Unknown Exits Taken 3 | 1 1 1 . Scrap Searched . | . . . . Spaces Dug . | . . . . Terrain Destroyed 3 | . . . 3 Melee . | . . . . Projectile 3 | . . . 3 AOE . | . . . . Terrain Rammed . | . . . . Walls Destroyed . | . . . . Machines Disabled . | . . . . Actions | -11 -10 -9 -9 --------- Run | Scr Mat Mat Sto Total 1236 | 55 279 434 468 Wait 39 | . 26 7 6 Move 936 | 44 222 366 304 Hop 5 | . 1 1 3 Pick Up 33 | 6 9 9 9 Fast Attach . | . . . . Attach 25 | 5 5 9 6 Detach 2 | . . 2 . Swap 15 | . 4 4 7 Drop 15 | . 6 4 5 Fire 110 | . 6 32 72 Melee 30 | . . . 30 Ram . | . . . . Kick . | . . . . Crush . | . . . . Escape Stasis 26 | . . . 26 Rewire . | . . . . Trap . | . . . . Miscellaneous . | . . . . Route ------- -11/Scrapyard -10/Materials -9/Materials -9/Storage (discovered 1 exit: [Rec]) History --------- Turn | Location | Event 17 | -11/Scrapyard | Discovered new exit (range 16) 55 | -11/Scrapyard | Entered Materials 242 | -10/Materials | Repaired Assault Rifle 271 | -10/Materials | Discovered new exit (range 10) 281 | -10/Materials | Entered another Materials area 281 | -9/Materials | Evolved 2 slots: Propulsion x2 283 | -9/Materials | Discovered new exit (range 12) 561 | -9/Materials | Entered Storage 895 | -9/Storage | Discovered new exit (range 18) 899 | -9/Storage | Build established: Mutant 913 | -9/Storage | Core integrity fell below 50% 961 | -9/Storage | First assault squad dispatched 987 | -9/Storage | Core integrity fell below 20% 1046 | -9/Storage | Destroyed by G-47 Trooper with Particle Gun Last Messages --------------- Melee Analysis Suite destroyed. G-34 Mercenary Aluminum Leg severed. G-34 Mercenary destroyed. Acquired 26 matter. G-34 Mercenary destroyed. C-30 ARC bursts open, deploying its payload. G-47 Trooper unfolds itself. G-34 Mercenary unfolds itself. L-31 Rogue unfolds itself. I-25 Savior unfolds itself. Acquired Aluminum Leg. R-06 Scavenger collects Heat Sink. G-34 Mercenary destroyed. Aluminum Leg destroyed. R-06 Scavenger collects Heat Sink. Aluminum Leg destroyed. L-31 Rogue destroyed. G-47 Trooper Aluminum Leg severed. Critical hit (Burn: +37). Imp. Ion Engine destroyed. Map ----- +----------------------------------------------------+ | ???????????????????????????????????????????# #??? | | ???????????????????????????????????????????# #??? | | ???????????????????????????????????????????# #??? | | ??????????????????????????????????????#????# #??? | | ?????????????????????????????????????? ???# #??? | | ??????????????????????????????????????? ??# #??? | | ??????????????????????????????????? ?? ??# #??# | | ???????????????????????????????????"" "?" ?# #??# | | ???????????????????????????????????"" """ # #??# | | ???????????????????????????????# """ """ # #??# | | ???????????????????????????????# / #??# | | ??????????????###????????????############### #??# | | ??????????????? ????????????# ########## #### | | ??????????????? ???????????# % | | ???????????????? ???????????# | | ????????????#####/####???????# #####+####+##### | | ???????????## % #???????## ##??#! | #?? | | ???????????# #????????# #???# #?? | | ????????????# ^ ] #????????# #???# #?? | | ????????????# ########## #???# [ ### | | ????????????#[ """" # #???# !# | | ????????????# """" # ######## #???# # | | ????????????# """"!#%#??????# ##### !# | | ????????????# """"%/ ######## +[ # | | ????????????# [*# ## [ ## ################ | | ????????????###"T"#### ##@%! ## #??????????????#"" | | ??????????????####???# ggi=* ## #?????##########"" | | ?????????????????????####= ##+####### ##"" | | ?????????????#############= ## # ##"" | | ?????????????# ! # ## # ##"" | | ?????????????# [ + ## """"" # ## | | ?????????????# [ # ## " " # ## | | ?????????????# # ## """"" # #### | | ?????????????# ] + ## """"" # +% | | ?????????????# # ## " " # ### | | ?????????????# # ## """"" # ### | | ?????????????#######+##### ## # ### | | ??????????????###??# #??## ########+## ### | | ??????????????#]]^ # #### ##### ##+####### | | ??????????????#]]^ + [= *= %%! | | ??????????????#]]^ # T T =[ | | ??????????????###??###### ##### ##+####### | | ????????????????????????###+####?######T #???## | | ?????????????????????????## ##??????### ##????# | | ?????????????????????????#T #??????##! !#????# | | ?????????????????????????# #??????##! !#????# | | ?????????????????????????# #??????##! !#????# | | ?????????????????????????#######??????##! !#????# | | ??????????????????????????????????????######???## | | ???????????????????????????????????????????????#"" | +----------------------------------------------------+ Best States ------------- Heat Dissipation 28 Energy Generation 12 Energy Capacity 265 Matter Stores 300 Matter Capacity 300 Sight Range 18 Terrain Scan Density 10 Armor Coverage 225 Evasion (%) 63 Targeting Accuracy 6 Melee Accuracy 5 Item Schematics ----------------- Imp. Flight Unit | -9/Materials | Scanalyzed Imp. Ion Engine | -9/Materials | Scanalyzed Lgt. Assault Rifle | -9/Materials | Scanalyzed Robot Schematics ------------------ None Fabricated ------------ Nothing Alien Tech Used ----------------- None Achievements -------------- None Challenges ------------ None Game ------ Seed ChromaticShrapnelInterrupter Manual? 0 Play Time 00:25:36 Cumulative 19.7 hours Start 2022.04.27 @ 21:43:38 End 2022.04.27 @ 22:06:57 Sessions 1 Manual Loads 0 Difficulty Rogue Special Mode None Game No. 38 Rogue 38 Adventurer 0 Explorer 0 Win Type - Total 0 Types 0/0/0/0/0/0/0/0/0 Lore% 19 Gallery% 22 Achievement% 18 Wizard Run 0 Options --------- ASCII 0 Keyboard 0 Movement Mouse Keybinds 0 Fullscreen 1 Font 18/SmallcapsGlow Map View 76x50 Tactical HUD 0 Map Filters NONE Filters NONE Steam 1 RUN: a15eaf39-2d61-4ead-9110-92b389b0b8b7